[Event "Titled Tuesday Blitz June 14 Late 2022"]
[White "Ivic, Velimir"]
[Black "Nakamura, Hikaru"]
[WhiteFideId "950122"]
[BlackFideId "2016192"]
[WhiteElo "2610"]
[BlackElo "2850"]
[Result "1/2-1/2"]
[Round "07"]
[TimeControl "180+1"]
[Date "2022.06.14"]
[WhiteClock "0:00:05"]
[BlackClock "0:00:08"]

1. e4 {[%clk 0:03:00]}  d5 {[%clk 0:02:53]} 2. exd5 {[%clk 0:03:00]}  Qxd5 {[%clk 0:02:54]} 3. Nc3 {[%clk 0:03:01]}  Qa5 {[%clk 0:02:54]} 4. d4 {[%clk 0:03:00]}  c6 {[%clk 0:02:54]} 5. Bc4 {[%clk 0:02:59]}  Bf5 {[%clk 0:02:54]} 6. Nf3 {[%clk 0:02:58]}  e6 {[%clk 0:02:55]} 7. Bd2 {[%clk 0:02:58]}  Nf6 {[%clk 0:02:54]} 8. Nd5 {[%clk 0:02:58]}  Qd8 {[%clk 0:02:55]} 9. Nxf6+ {[%clk 0:02:58]}  gxf6 {[%clk 0:02:55]} 10. Bb3 {[%clk 0:02:55]}  Nd7 {[%clk 0:02:55]} 11. Qe2 {[%clk 0:02:55]}  Qc7 {[%clk 0:02:52]} 12. Nh4 {[%clk 0:02:54]}  Bg6 {[%clk 0:02:53]} 13. O-O-O {[%clk 0:02:53]}  O-O-O {[%clk 0:02:52]} 14. g3 {[%clk 0:02:53]}  Bd6 {[%clk 0:02:50]} 15. Ng2 {[%clk 0:02:51]}  c5 {[%clk 0:02:42]} 16. d5 {[%clk 0:02:41]}  Ne5 {[%clk 0:02:24]} 17. Ne3 {[%clk 0:02:34]}  Be4 {[%clk 0:02:20]} 18. f4 {[%clk 0:02:26]}  Nf3 {[%clk 0:02:11]} 19. Ba5 {[%clk 0:01:54]}  b6 {[%clk 0:02:01]} 20. Bc3 {[%clk 0:01:36]}  Nd4 {[%clk 0:01:59]} 21. Qa6+ {[%clk 0:01:36]}  Kb8 {[%clk 0:01:58]} 22. Rhe1 {[%clk 0:01:30]}  e5 {[%clk 0:01:54]} 23. fxe5 {[%clk 0:01:11]}  fxe5 {[%clk 0:01:55]} 24. g4 {[%clk 0:00:59]}  h5 {[%clk 0:01:40]} 25. h3 {[%clk 0:00:59]}  hxg4 {[%clk 0:01:33]} 26. hxg4 {[%clk 0:00:59]}  Rh3 {[%clk 0:01:33]} 27. Kb1 {[%clk 0:00:42]}  Rh2 {[%clk 0:01:02]} 28. Qf1 {[%clk 0:00:34]}  Rdh8 {[%clk 0:00:50]} 29. g5 {[%clk 0:00:25]}  Bg6 {[%clk 0:00:46]} 30. Qf6 {[%clk 0:00:23]}  Be7 {[%clk 0:00:34]} 31. Qf1 {[%clk 0:00:22]}  Bxg5 {[%clk 0:00:34]} 32. d6 {[%clk 0:00:21]}  Qxd6 {[%clk 0:00:33]} 33. Nc4 {[%clk 0:00:22]}  Nxb3 {[%clk 0:00:29]} 34. axb3 {[%clk 0:00:17]}  Bxc2+ {[%clk 0:00:29]} 35. Ka2 {[%clk 0:00:18]}  Qc6 {[%clk 0:00:20]} 36. Bxe5+ {[%clk 0:00:18]}  Ka8 {[%clk 0:00:19]} 37. Bxh2 {[%clk 0:00:11]}  b5 {[%clk 0:00:18]} 38. Rd6 {[%clk 0:00:09]}  Bxb3+ {[%clk 0:00:06]} 39. Kxb3 {[%clk 0:00:07]}  bxc4+ {[%clk 0:00:06]} 40. Ka2 {[%clk 0:00:07]}  Qa4+ {[%clk 0:00:04]} 41. Kb1 {[%clk 0:00:07]}  Rxh2 {[%clk 0:00:05]} 42. Qf3+ {[%clk 0:00:05]}  Kb8 {[%clk 0:00:05]} 43. Qe4 {[%clk 0:00:03]}  Rxb2+ {[%clk 0:00:04]} 44. Kxb2 {[%clk 0:00:03]}  Qb3+ {[%clk 0:00:04]} 45. Ka1 {[%clk 0:00:03]}  Qa3+ {[%clk 0:00:05]} 46. Kb1 {[%clk 0:00:03]}  Qb3+ {[%clk 0:00:06]} 47. Ka1 {[%clk 0:00:04]}  Qa3+ {[%clk 0:00:07]} 48. Kb1 {[%clk 0:00:04]}  Qb3+ {[%clk 0:00:08]} 49. Ka1 {[%clk 0:00:05]} 1/2-1/2


[Site "https://www.chess.com"]

[Event "Titled Tuesday Blitz June 14 Late 2022"]
[White "Janaszak, Dawid"]
[Black "Titichoca Daza, Daniel"]
[WhiteFideId "1119206"]
[BlackFideId "3309550"]
[WhiteElo "2199"]
[BlackElo "1912"]
[Result "1/2-1/2"]
[Round "07"]
[TimeControl "180+1"]
[Date "2022.06.15"]
[WhiteClock "0:00:31"]
[BlackClock "0:00:38"]

1. d4 {[%clk 0:03:00]}  g6 {[%clk 0:02:59]} 2. e4 {[%clk 0:02:56]}  Bg7 {[%clk 0:03:00]} 3. Nf3 {[%clk 0:02:56]}  d6 {[%clk 0:03:00]} 4. c3 {[%clk 0:02:56]}  a6 {[%clk 0:03:00]} 5. Bd3 {[%clk 0:02:55]}  Nd7 {[%clk 0:03:00]} 6. Bg5 {[%clk 0:02:51]}  c5 {[%clk 0:03:00]} 7. O-O {[%clk 0:02:44]}  h6 {[%clk 0:02:51]} 8. Be3 {[%clk 0:02:38]}  Qc7 {[%clk 0:02:49]} 9. Nbd2 {[%clk 0:02:31]}  Ngf6 {[%clk 0:02:43]} 10. h3 {[%clk 0:02:29]}  O-O {[%clk 0:02:41]} 11. Re1 {[%clk 0:02:27]}  b6 {[%clk 0:02:40]} 12. Nf1 {[%clk 0:02:26]}  Bb7 {[%clk 0:02:40]} 13. Ng3 {[%clk 0:02:26]}  e5 {[%clk 0:02:30]} 14. Qd2 {[%clk 0:02:09]}  Kh7 {[%clk 0:02:23]} 15. Rad1 {[%clk 0:02:10]}  Rad8 {[%clk 0:02:05]} 16. Qe2 {[%clk 0:02:07]}  b5 {[%clk 0:01:57]} 17. Nh2 {[%clk 0:01:53]}  d5 {[%clk 0:01:50]} 18. dxe5 {[%clk 0:01:42]}  Nxe5 {[%clk 0:01:49]} 19. exd5 {[%clk 0:01:42]}  Nxd5 {[%clk 0:01:45]} 20. Be4 {[%clk 0:01:25]}  Nxe3 {[%clk 0:01:44]} 21. Qxe3 {[%clk 0:01:26]}  Nc4 {[%clk 0:01:43]} 22. Qc1 {[%clk 0:01:17]}  Bxe4 {[%clk 0:01:32]} 23. Nxe4 {[%clk 0:01:15]}  Rxd1 {[%clk 0:01:25]} 24. Rxd1 {[%clk 0:01:10]}  Re8 {[%clk 0:01:26]} 25. Ng3 {[%clk 0:01:00]}  Qe5 {[%clk 0:01:11]} 26. Ng4 {[%clk 0:00:52]}  Qe6 {[%clk 0:01:10]} 27. b3 {[%clk 0:00:43]}  Nb6 {[%clk 0:01:00]} 28. Ne3 {[%clk 0:00:42]}  f5 {[%clk 0:00:59]} 29. Ngf1 {[%clk 0:00:40]}  f4 {[%clk 0:00:56]} 30. Ng4 {[%clk 0:00:38]}  h5 {[%clk 0:00:56]} 31. Ngh2 {[%clk 0:00:38]}  Nd5 {[%clk 0:00:55]} 32. Nf3 {[%clk 0:00:38]}  Nxc3 {[%clk 0:00:53]} 33. Ng5+ {[%clk 0:00:37]}  Kh6 {[%clk 0:00:53]} 34. Nxe6 {[%clk 0:00:34]}  Ne2+ {[%clk 0:00:54]} 35. Kh2 {[%clk 0:00:35]}  Nxc1 {[%clk 0:00:53]} 36. Nxg7 {[%clk 0:00:35]}  Kxg7 {[%clk 0:00:49]} 37. Rxc1 {[%clk 0:00:35]}  Re2 {[%clk 0:00:50]} 38. Rxc5 {[%clk 0:00:35]}  Rxf2 {[%clk 0:00:46]} 39. Kg1 {[%clk 0:00:35]}  Rxa2 {[%clk 0:00:46]} 40. b4 {[%clk 0:00:36]}  Kf6 {[%clk 0:00:41]} 41. h4 {[%clk 0:00:35]}  Rb2 {[%clk 0:00:39]} 42. Rc6+ {[%clk 0:00:35]}  Kf5 {[%clk 0:00:39]} 43. Rxa6 {[%clk 0:00:35]}  Rxb4 {[%clk 0:00:39]} 44. Nh2 {[%clk 0:00:35]}  Rb1+ {[%clk 0:00:37]} 45. Kf2 {[%clk 0:00:33]}  Rb2+ {[%clk 0:00:37]} 46. Kg1 {[%clk 0:00:32]}  Rb1+ {[%clk 0:00:38]} 47. Kf2 {[%clk 0:00:32]}  Rb2+ {[%clk 0:00:38]} 48. Kg1 {[%clk 0:00:31]}  Rb1+ {[%clk 0:00:38]} 1/2-1/2


[Site "https://www.chess.com"]

[Event "Titled Tuesday Blitz June 14 Late 2022"]
[White "Kollars, Dmitrij"]
[Black "Riehle, Marco"]
[WhiteFideId "12909572"]
[BlackFideId "12904392"]
[WhiteElo "2584"]
[BlackElo "2462"]
[Result "0-1"]
[Round "07"]
[TimeControl "180+1"]
[Date "2022.06.14"]
[WhiteClock "0:00:08"]
[BlackClock "0:00:36"]

1. Nf3 {[%clk 0:03:00]}  Nf6 {[%clk 0:02:57]} 2. c4 {[%clk 0:02:58]}  c5 {[%clk 0:02:57]} 3. g3 {[%clk 0:02:57]}  d5 {[%clk 0:02:57]} 4. cxd5 {[%clk 0:02:57]}  Nxd5 {[%clk 0:02:58]} 5. Bg2 {[%clk 0:02:57]}  Nc6 {[%clk 0:02:59]} 6. O-O {[%clk 0:02:55]}  e5 {[%clk 0:02:58]} 7. Nc3 {[%clk 0:02:56]}  Be6 {[%clk 0:02:57]} 8. d3 {[%clk 0:02:42]}  Be7 {[%clk 0:02:57]} 9. Bd2 {[%clk 0:02:38]}  O-O {[%clk 0:02:57]} 10. a3 {[%clk 0:02:36]}  f6 {[%clk 0:02:55]} 11. Rc1 {[%clk 0:02:33]}  Qd7 {[%clk 0:02:55]} 12. Qa4 {[%clk 0:02:25]}  Rac8 {[%clk 0:02:52]} 13. Nxd5 {[%clk 0:02:21]}  Bxd5 {[%clk 0:02:52]} 14. b4 {[%clk 0:02:21]}  cxb4 {[%clk 0:02:48]} 15. axb4 {[%clk 0:02:21]}  a6 {[%clk 0:02:41]} 16. Rfe1 {[%clk 0:02:06]}  Rfd8 {[%clk 0:02:39]} 17. h4 {[%clk 0:01:57]}  Rc7 {[%clk 0:02:35]} 18. Rb1 {[%clk 0:01:51]}  Kf8 {[%clk 0:02:15]} 19. Be3 {[%clk 0:01:51]}  Bxf3 {[%clk 0:02:12]} 20. exf3 {[%clk 0:01:38]}  Qxd3 {[%clk 0:02:11]} 21. Bb6 {[%clk 0:01:31]}  Rcc8 {[%clk 0:02:06]} 22. Bxd8 {[%clk 0:01:31]}  Rxd8 {[%clk 0:02:06]} 23. b5 {[%clk 0:01:09]}  Nd4 {[%clk 0:01:56]} 24. bxa6 {[%clk 0:01:03]}  bxa6 {[%clk 0:01:57]} 25. Rbd1 {[%clk 0:00:46]}  Qb5 {[%clk 0:01:48]} 26. Qa2 {[%clk 0:00:44]}  a5 {[%clk 0:01:44]} 27. Kh1 {[%clk 0:00:43]}  a4 {[%clk 0:01:43]} 28. f4 {[%clk 0:00:37]}  exf4 {[%clk 0:01:40]} 29. Re4 {[%clk 0:00:36]}  Bc5 {[%clk 0:01:19]} 30. Rxf4 {[%clk 0:00:35]}  Qb3 {[%clk 0:01:20]} 31. Qa1 {[%clk 0:00:32]}  Qb4 {[%clk 0:01:01]} 32. Rb1 {[%clk 0:00:25]}  Qa5 {[%clk 0:00:53]} 33. Rd1 {[%clk 0:00:18]}  Qb4 {[%clk 0:00:53]} 34. Rb1 {[%clk 0:00:16]}  Qa5 {[%clk 0:00:53]} 35. Be4 {[%clk 0:00:16]}  Ne2 {[%clk 0:00:41]} 36. Rf3 {[%clk 0:00:15]}  a3 {[%clk 0:00:38]} 37. Bxh7 {[%clk 0:00:11]}  a2 {[%clk 0:00:38]} 38. Rf1 {[%clk 0:00:09]}  Qa8 {[%clk 0:00:35]} 39. Kg2 {[%clk 0:00:06]}  Nd4 {[%clk 0:00:35]} 40. Qc3 {[%clk 0:00:06]}  Qxf3+ {[%clk 0:00:36]} 41. Qxf3 {[%clk 0:00:07]}  Nxf3 {[%clk 0:00:36]} 42. Kxf3 {[%clk 0:00:08]}  Bd4 {[%clk 0:00:36]} 0-1


[Site "https://www.chess.com"]

[Event "Titled Tuesday Blitz June 14 Late 2022"]
[White "Lashkin, Jegor"]
[Black "Sadhwani, Raunak"]
[WhiteFideId "13907808"]
[BlackFideId "35093487"]
[WhiteElo "2368"]
[BlackElo "2616"]
[Result "0-1"]
[Round "07"]
[TimeControl "180+1"]
[Date "2022.06.14"]
[WhiteClock "0:00:02"]
[BlackClock "0:00:21"]

1. d4 {[%clk 0:03:00]}  Nf6 {[%clk 0:02:59]} 2. c4 {[%clk 0:03:01]}  g6 {[%clk 0:02:59]} 3. Nc3 {[%clk 0:03:01]}  Bg7 {[%clk 0:03:00]} 4. e4 {[%clk 0:03:01]}  d6 {[%clk 0:03:00]} 5. Nf3 {[%clk 0:03:01]}  O-O {[%clk 0:03:01]} 6. Be2 {[%clk 0:03:02]}  Bg4 {[%clk 0:02:59]} 7. Be3 {[%clk 0:03:02]}  a5 {[%clk 0:02:54]} 8. Ng1 {[%clk 0:02:55]}  Bd7 {[%clk 0:02:48]} 9. h3 {[%clk 0:02:52]}  e5 {[%clk 0:02:46]} 10. d5 {[%clk 0:02:45]}  c6 {[%clk 0:02:45]} 11. Nf3 {[%clk 0:02:34]}  cxd5 {[%clk 0:02:40]} 12. exd5 {[%clk 0:02:34]}  Na6 {[%clk 0:02:36]} 13. O-O {[%clk 0:02:33]}  Ne8 {[%clk 0:02:33]} 14. Rc1 {[%clk 0:02:19]}  f5 {[%clk 0:02:33]} 15. Qb3 {[%clk 0:01:54]}  Nc5 {[%clk 0:02:18]} 16. Bxc5 {[%clk 0:01:46]}  dxc5 {[%clk 0:02:19]} 17. Nb5 {[%clk 0:01:31]}  e4 {[%clk 0:02:16]} 18. Nd2 {[%clk 0:01:29]}  a4 {[%clk 0:02:16]} 19. Qa3 {[%clk 0:01:26]}  b6 {[%clk 0:02:15]} 20. Rfd1 {[%clk 0:01:03]}  Be5 {[%clk 0:02:05]} 21. b4 {[%clk 0:00:58]}  axb3 {[%clk 0:02:05]} 22. Qxb3 {[%clk 0:00:58]}  Nd6 {[%clk 0:01:59]} 23. Nc3 {[%clk 0:00:42]}  Ra6 {[%clk 0:01:54]} 24. a4 {[%clk 0:00:41]}  Qh4 {[%clk 0:01:49]} 25. Qc2 {[%clk 0:00:30]}  Bd4 {[%clk 0:01:41]} 26. Rf1 {[%clk 0:00:28]}  g5 {[%clk 0:01:39]} 27. Nb3 {[%clk 0:00:21]}  Raa8 {[%clk 0:01:26]} 28. Qd2 {[%clk 0:00:20]}  Be5 {[%clk 0:01:26]} 29. a5 {[%clk 0:00:15]}  f4 {[%clk 0:01:08]} 30. f3 {[%clk 0:00:14]}  Bxh3 {[%clk 0:00:53]} 31. Nxe4 {[%clk 0:00:11]}  Nxe4 {[%clk 0:00:49]} 32. fxe4 {[%clk 0:00:12]}  Bxg2 {[%clk 0:00:49]} 33. Kxg2 {[%clk 0:00:08]}  Qg3+ {[%clk 0:00:50]} 34. Kh1 {[%clk 0:00:08]}  Rf6 {[%clk 0:00:46]} 35. Bh5 {[%clk 0:00:06]}  f3 {[%clk 0:00:29]} 36. Rxf3 {[%clk 0:00:02]}  Rxf3 {[%clk 0:00:27]} 37. Bxf3 {[%clk 0:00:02]}  Qxf3+ {[%clk 0:00:28]} 38. Qg2 {[%clk 0:00:02]}  Qh5+ {[%clk 0:00:24]} 39. Kg1 {[%clk 0:00:02]}  bxa5 {[%clk 0:00:24]} 40. Nxc5 {[%clk 0:00:01]}  Bd4+ {[%clk 0:00:24]} 41. Kf1 {[%clk 0:00:02]}  Rf8+ {[%clk 0:00:23]} 42. Ke1 {[%clk 0:00:02]}  Bxc5 {[%clk 0:00:23]} 43. e5 {[%clk 0:00:03]}  Qh4+ {[%clk 0:00:23]} 44. Kd1 {[%clk 0:00:03]}  Qd4+ {[%clk 0:00:23]} 45. Ke1 {[%clk 0:00:03]}  Bb4+ {[%clk 0:00:22]} 46. Ke2 {[%clk 0:00:02]}  Qd2# {[%clk 0:00:21]} 0-1


[Site "https://www.chess.com"]

[Event "Titled Tuesday Blitz June 14 Late 2022"]
[White "Livaic, Leon"]
[Black "Paravyan, David"]
[WhiteFideId "14531534"]
[BlackFideId "4194985"]
[WhiteElo "2540"]
[BlackElo "2569"]
[Result "1-0"]
[Round "07"]
[TimeControl "180+1"]
[Date "2022.06.14"]
[WhiteClock "0:00:09"]
[BlackClock "0:00:01"]

1. d4 {[%clk 0:03:00]}  Nf6 {[%clk 0:02:59]} 2. c4 {[%clk 0:03:01]}  g6 {[%clk 0:02:59]} 3. Nc3 {[%clk 0:03:01]}  d5 {[%clk 0:03:00]} 4. Nf3 {[%clk 0:02:59]}  Bg7 {[%clk 0:02:59]} 5. Bg5 {[%clk 0:03:00]}  Ne4 {[%clk 0:02:58]} 6. cxd5 {[%clk 0:03:00]}  Nxg5 {[%clk 0:02:57]} 7. Nxg5 {[%clk 0:03:01]}  e6 {[%clk 0:02:58]} 8. Qd2 {[%clk 0:03:01]}  h6 {[%clk 0:02:58]} 9. Nf3 {[%clk 0:03:01]}  exd5 {[%clk 0:02:57]} 10. e3 {[%clk 0:03:02]}  O-O {[%clk 0:02:57]} 11. b4 {[%clk 0:03:02]}  Qd6 {[%clk 0:02:56]} 12. b5 {[%clk 0:02:59]}  a6 {[%clk 0:02:54]} 13. Rc1 {[%clk 0:02:59]}  Be6 {[%clk 0:02:36]} 14. Be2 {[%clk 0:02:54]}  Rc8 {[%clk 0:02:37]} 15. a4 {[%clk 0:02:51]}  axb5 {[%clk 0:02:36]} 16. axb5 {[%clk 0:02:52]}  Nd7 {[%clk 0:02:36]} 17. O-O {[%clk 0:02:48]}  Nb6 {[%clk 0:02:31]} 18. Ra1 {[%clk 0:02:45]}  Qb4 {[%clk 0:02:27]} 19. Qc2 {[%clk 0:02:29]}  c5 {[%clk 0:02:10]} 20. Rxa8 {[%clk 0:02:19]}  Nxa8 {[%clk 0:02:10]} 21. Na2 {[%clk 0:01:56]}  Qa3 {[%clk 0:02:05]} 22. Qd2 {[%clk 0:01:42]}  Nb6 {[%clk 0:01:49]} 23. dxc5 {[%clk 0:01:42]}  Rxc5 {[%clk 0:01:35]} 24. Qb4 {[%clk 0:01:41]}  Rc3 {[%clk 0:01:13]} 25. Qxa3 {[%clk 0:01:33]}  Rxa3 {[%clk 0:01:14]} 26. Nb4 {[%clk 0:01:32]}  Bf5 {[%clk 0:01:02]} 27. Rd1 {[%clk 0:01:15]}  Rb3 {[%clk 0:01:02]} 28. Nxd5 {[%clk 0:01:03]}  Nxd5 {[%clk 0:01:00]} 29. Rxd5 {[%clk 0:01:04]}  Be6 {[%clk 0:00:44]} 30. Rd8+ {[%clk 0:00:59]}  Kh7 {[%clk 0:00:42]} 31. h3 {[%clk 0:00:42]}  Rb1+ {[%clk 0:00:41]} 32. Kh2 {[%clk 0:00:40]}  Bf6 {[%clk 0:00:32]} 33. Rd2 {[%clk 0:00:40]}  Kg7 {[%clk 0:00:28]} 34. Nd4 {[%clk 0:00:40]}  Bd7 {[%clk 0:00:22]} 35. Bf3 {[%clk 0:00:19]}  Be5+ {[%clk 0:00:18]} 36. g3 {[%clk 0:00:18]}  Bxb5 {[%clk 0:00:18]} 37. Nxb5 {[%clk 0:00:18]}  Rxb5 {[%clk 0:00:18]} 38. Rd7 {[%clk 0:00:18]}  Rb6 {[%clk 0:00:04]} 39. Bd5 {[%clk 0:00:13]}  Rf6 {[%clk 0:00:03]} 40. f4 {[%clk 0:00:14]}  Bc3 {[%clk 0:00:03]} 41. e4 {[%clk 0:00:14]}  g5 {[%clk 0:00:01]} 42. e5 {[%clk 0:00:14]}  Rb6 {[%clk 0:00:01]} 43. Rxf7+ {[%clk 0:00:14]}  Kh8 {[%clk 0:00:01]} 44. e6 {[%clk 0:00:08]}  gxf4 {[%clk 0:00:01]} 45. e7 {[%clk 0:00:08]}  Rb2+ {[%clk 0:00:01]} 46. Kh1 {[%clk 0:00:08]}  Rb1+ {[%clk 0:00:02]} 47. Kg2 {[%clk 0:00:09]}  Rb2+ {[%clk 0:00:01]} 48. Kf3 {[%clk 0:00:09]} 1-0


[Site "https://www.chess.com"]

[Event "Titled Tuesday Blitz June 14 Late 2022"]
[White "Mekhitarian, Krikor Sevag"]
[Black "Zlatin, Alexander"]
[WhiteFideId "2107660"]
[BlackFideId "2810549"]
[WhiteElo "2611"]
[BlackElo "2228"]
[Result "1-0"]
[Round "07"]
[TimeControl "180+1"]
[Date "2022.06.15"]
[WhiteClock "0:00:20"]
[BlackClock "0:00:04"]

1. d4 {[%clk 0:03:00]}  d5 {[%clk 0:02:59]} 2. Nf3 {[%clk 0:03:00]}  e6 {[%clk 0:02:59]} 3. g3 {[%clk 0:02:59]}  c5 {[%clk 0:02:59]} 4. Bg2 {[%clk 0:02:58]}  Nf6 {[%clk 0:02:59]} 5. O-O {[%clk 0:02:58]}  Nc6 {[%clk 0:03:00]} 6. c4 {[%clk 0:02:56]}  Be7 {[%clk 0:03:01]} 7. cxd5 {[%clk 0:02:55]}  exd5 {[%clk 0:03:02]} 8. Nc3 {[%clk 0:02:54]}  c4 {[%clk 0:03:02]} 9. Ne5 {[%clk 0:02:42]}  O-O {[%clk 0:03:01]} 10. Bg5 {[%clk 0:02:23]}  Be6 {[%clk 0:03:01]} 11. e3 {[%clk 0:02:23]}  h6 {[%clk 0:02:53]} 12. Bxf6 {[%clk 0:02:22]}  Bxf6 {[%clk 0:02:54]} 13. f4 {[%clk 0:02:21]}  Ne7 {[%clk 0:02:52]} 14. b3 {[%clk 0:02:19]}  cxb3 {[%clk 0:02:49]} 15. Qxb3 {[%clk 0:02:18]}  Qa5 {[%clk 0:02:26]} 16. Rfc1 {[%clk 0:02:12]}  Rac8 {[%clk 0:02:24]} 17. Qb5 {[%clk 0:01:55]}  Qa3 {[%clk 0:02:06]} 18. Qb3 {[%clk 0:01:50]}  Qa5 {[%clk 0:01:59]} 19. a3 {[%clk 0:01:41]}  b6 {[%clk 0:01:52]} 20. Qb4 {[%clk 0:01:31]}  Qxb4 {[%clk 0:01:28]} 21. axb4 {[%clk 0:01:32]}  Nf5 {[%clk 0:01:19]} 22. Kf2 {[%clk 0:01:18]}  Be7 {[%clk 0:01:18]} 23. Nxd5 {[%clk 0:01:14]}  Bxd5 {[%clk 0:01:11]} 24. Bxd5 {[%clk 0:01:15]}  Rxc1 {[%clk 0:00:54]} 25. Rxc1 {[%clk 0:01:15]}  Bxb4 {[%clk 0:00:54]} 26. Rc7 {[%clk 0:01:03]}  Nd6 {[%clk 0:00:45]} 27. Rxa7 {[%clk 0:01:01]}  Rc8 {[%clk 0:00:33]} 28. Nc6 {[%clk 0:00:30]}  Nb5 {[%clk 0:00:33]} 29. Rxf7 {[%clk 0:00:29]}  Rxc6 {[%clk 0:00:02]} 30. Rc7+ {[%clk 0:00:27]}  Kh7 {[%clk 0:00:03]} 31. Rxc6 {[%clk 0:00:27]}  Nc3 {[%clk 0:00:03]} 32. Bf3 {[%clk 0:00:26]}  Ba5 {[%clk 0:00:02]} 33. d5 {[%clk 0:00:23]}  Kg8 {[%clk 0:00:02]} 34. d6 {[%clk 0:00:23]}  Kf7 {[%clk 0:00:03]} 35. e4 {[%clk 0:00:21]}  Nb5 {[%clk 0:00:02]} 36. e5 {[%clk 0:00:20]}  Nd4 {[%clk 0:00:03]} 37. Bd5+ {[%clk 0:00:20]}  Ke8 {[%clk 0:00:03]} 38. Rc7 {[%clk 0:00:20]}  Kd8 {[%clk 0:00:03]} 39. Rxg7 {[%clk 0:00:19]}  b5 {[%clk 0:00:04]} 40. e6 {[%clk 0:00:19]}  Nf5 {[%clk 0:00:04]} 41. Rg8# {[%clk 0:00:20]} 1-0


[Site "https://www.chess.com"]

[Event "Titled Tuesday Blitz June 14 Late 2022"]
[White "Moroni, Luca Jr"]
[Black "Guz, Ari"]
[WhiteFideId "865834"]
[BlackFideId "2825759"]
[WhiteElo "2573"]
[BlackElo "1913"]
[Result "1/2-1/2"]
[Round "07"]
[TimeControl "180+1"]
[Date "2022.06.14"]
[WhiteClock "0:00:09"]
[BlackClock "0:00:15"]

1. b3 {[%clk 0:03:00]}  e5 {[%clk 0:02:54]} 2. Bb2 {[%clk 0:03:01]}  Nc6 {[%clk 0:02:54]} 3. c4 {[%clk 0:03:01]}  Nf6 {[%clk 0:02:53]} 4. Nf3 {[%clk 0:03:01]}  d6 {[%clk 0:02:53]} 5. d4 {[%clk 0:02:59]}  exd4 {[%clk 0:02:53]} 6. Nxd4 {[%clk 0:03:00]}  Nxd4 {[%clk 0:02:50]} 7. Qxd4 {[%clk 0:03:01]}  Be7 {[%clk 0:02:50]} 8. Nc3 {[%clk 0:03:00]}  O-O {[%clk 0:02:49]} 9. g3 {[%clk 0:03:00]}  c6 {[%clk 0:02:49]} 10. Bg2 {[%clk 0:03:00]}  Qb6 {[%clk 0:02:49]} 11. Qxb6 {[%clk 0:02:57]}  axb6 {[%clk 0:02:50]} 12. O-O {[%clk 0:02:56]}  Be6 {[%clk 0:02:42]} 13. Rfd1 {[%clk 0:02:56]}  Rfd8 {[%clk 0:02:41]} 14. e3 {[%clk 0:02:54]}  Nd7 {[%clk 0:02:37]} 15. Ne2 {[%clk 0:02:41]}  Nc5 {[%clk 0:02:28]} 16. Nf4 {[%clk 0:02:35]}  Bg4 {[%clk 0:02:20]} 17. Rd2 {[%clk 0:02:34]}  Ra7 {[%clk 0:02:09]} 18. h3 {[%clk 0:02:27]}  Bf5 {[%clk 0:02:05]} 19. g4 {[%clk 0:02:24]}  Be4 {[%clk 0:02:03]} 20. b4 {[%clk 0:02:12]}  Bxg2 {[%clk 0:01:51]} 21. bxc5 {[%clk 0:02:04]}  Be4 {[%clk 0:01:50]} 22. cxd6 {[%clk 0:02:04]}  Rxd6 {[%clk 0:01:48]} 23. Rxd6 {[%clk 0:02:03]}  Bxd6 {[%clk 0:01:49]} 24. Rd1 {[%clk 0:02:03]}  Be7 {[%clk 0:01:41]} 25. Rd7 {[%clk 0:02:01]}  Bh4 {[%clk 0:01:22]} 26. a3 {[%clk 0:01:33]}  h6 {[%clk 0:01:10]} 27. Nh5 {[%clk 0:01:32]}  Ra4 {[%clk 0:01:06]} 28. Rxb7 {[%clk 0:00:39]}  Rxc4 {[%clk 0:01:00]} 29. Rxb6 {[%clk 0:00:39]}  Rc2 {[%clk 0:00:55]} 30. Ng3 {[%clk 0:00:17]}  Bxg3 {[%clk 0:00:28]} 31. fxg3 {[%clk 0:00:17]}  Rg2+ {[%clk 0:00:29]} 32. Kf1 {[%clk 0:00:17]}  Rxg3 {[%clk 0:00:29]} 33. a4 {[%clk 0:00:17]}  Rxh3 {[%clk 0:00:25]} 34. a5 {[%clk 0:00:17]}  Rh1+ {[%clk 0:00:22]} 35. Kf2 {[%clk 0:00:16]}  Bd3 {[%clk 0:00:15]} 36. a6 {[%clk 0:00:16]}  Bxa6 {[%clk 0:00:15]} 37. Rxa6 {[%clk 0:00:16]}  Rh2+ {[%clk 0:00:15]} 38. Kf3 {[%clk 0:00:16]}  Rxb2 {[%clk 0:00:15]} 39. Rxc6 {[%clk 0:00:16]}  Rb5 {[%clk 0:00:16]} 40. Rc7 {[%clk 0:00:16]}  Rb6 {[%clk 0:00:15]} 41. Kf4 {[%clk 0:00:16]}  Rf6+ {[%clk 0:00:15]} 42. Kg3 {[%clk 0:00:17]}  Kh7 {[%clk 0:00:16]} 43. Rb7 {[%clk 0:00:16]}  Kg6 {[%clk 0:00:16]} 44. Ra7 {[%clk 0:00:15]}  Re6 {[%clk 0:00:17]} 45. Kf3 {[%clk 0:00:15]}  Rb6 {[%clk 0:00:17]} 46. Rc7 {[%clk 0:00:15]}  Rf6+ {[%clk 0:00:16]} 47. Kg3 {[%clk 0:00:13]}  h5 {[%clk 0:00:17]} 48. gxh5+ {[%clk 0:00:13]}  Kxh5 {[%clk 0:00:18]} 49. Rb7 {[%clk 0:00:12]}  Kg6 {[%clk 0:00:18]} 50. Ra7 {[%clk 0:00:13]}  Re6 {[%clk 0:00:18]} 51. Kf4 {[%clk 0:00:13]}  f5 {[%clk 0:00:18]} 52. Ra5 {[%clk 0:00:12]}  Re4+ {[%clk 0:00:17]} 53. Kf3 {[%clk 0:00:12]}  Kf6 {[%clk 0:00:18]} 54. Ra7 {[%clk 0:00:12]}  g5 {[%clk 0:00:17]} 55. Ra6+ {[%clk 0:00:12]}  Re6 {[%clk 0:00:17]} 56. Ra5 {[%clk 0:00:12]}  g4+ {[%clk 0:00:18]} 57. Kf2 {[%clk 0:00:12]}  Kg5 {[%clk 0:00:18]} 58. Ra8 {[%clk 0:00:12]}  Rh6 {[%clk 0:00:17]} 59. Rg8+ {[%clk 0:00:12]}  Kf6 {[%clk 0:00:17]} 60. Rf8+ {[%clk 0:00:12]}  Ke5 {[%clk 0:00:18]} 61. Re8+ {[%clk 0:00:13]}  Re6 {[%clk 0:00:19]} 62. Ra8 {[%clk 0:00:11]}  Rd6 {[%clk 0:00:18]} 63. Re8+ {[%clk 0:00:11]}  Kf6 {[%clk 0:00:18]} 64. Rf8+ {[%clk 0:00:10]}  Kg6 {[%clk 0:00:18]} 65. Rg8+ {[%clk 0:00:11]}  Kf7 {[%clk 0:00:18]} 66. Ra8 {[%clk 0:00:11]}  Rb6 {[%clk 0:00:18]} 67. Kg3 {[%clk 0:00:11]}  Rb4 {[%clk 0:00:18]} 68. Ra6 {[%clk 0:00:10]}  Re4 {[%clk 0:00:18]} 69. Kf2 {[%clk 0:00:10]}  f4 {[%clk 0:00:17]} 70. exf4 {[%clk 0:00:09]}  Rxf4+ {[%clk 0:00:18]} 71. Kg3 {[%clk 0:00:10]}  Rb4 {[%clk 0:00:17]} 72. Kh4 {[%clk 0:00:09]}  Kg7 {[%clk 0:00:17]} 73. Rc6 {[%clk 0:00:09]}  Kf7 {[%clk 0:00:17]} 74. Ra6 {[%clk 0:00:09]}  Rc4 {[%clk 0:00:15]} 1/2-1/2


[Site "https://www.chess.com"]